{"text_format":"3","workbook":"xlsx","n_sheets":1,"sheets":["تكلفة البيانات والمخطط"],"not_rendered":{"charts":1,"defined_names":2},"read":"whole","date_system":"1900"}

{"sheet":"تكلفة البيانات والمخطط","index":0,"n_rows":16,"n_cols":5,"rows_kept":16}
[null,"تحليل التكلفة - باريتو"]
[null,"يوجد مخطط باريتو للنسبة المئوية التراكمية للتكاليف السنوية عبر جميع مراكز التكلفة في الخلايا من B2 إلى E3."]
[]
[null,"تحليل التكلفة"]
[null,"مركز تكلفة","التكلفة السنوية ","النسبة المئوية للإجمالي","النسبة المئوية التراكمية"]
[null,"أجزاء ومواد",{"v":1325000,"d":"ر.س.‏ 1,325,000.00"},{"$f":"IFERROR(بيانات[[#This Row],[التكلفة السنوية ]]/SUM(بيانات[[التكلفة السنوية ]]), \"\")","v":{"v":0.3117280319962357,"d":"31.17%"}},{"$f":"IFERROR(SUM(INDEX(بيانات[النسبة المئوية للإجمالي],1):بيانات[[#This Row],[النسبة المئوية للإجمالي]]), \"\")","v":{"v":0.3117280319962357,"d":"31.17%"}}]
[null,"معدات التصنيع",{"v":900500,"d":"ر.س.‏ 900,500.00"},{"$f":"IFERROR(بيانات[[#This Row],[التكلفة السنوية ]]/SUM(بيانات[[التكلفة السنوية ]]), \"\")","v":{"v":0.21185742853781908,"d":"21.19%"}},{"$f":"IFERROR(SUM(INDEX(بيانات[النسبة المئوية للإجمالي],1):بيانات[[#This Row],[النسبة المئوية للإجمالي]]), \"\")","v":{"v":0.5235854605340549,"d":"52.36%"}}]
[null,"الرواتب",{"v":575000,"d":"ر.س.‏ 575,000.00"},{"$f":"IFERROR(بيانات[[#This Row],[التكلفة السنوية ]]/SUM(بيانات[[التكلفة السنوية ]]), \"\")","v":{"v":0.13527820256440418,"d":"13.53%"}},{"$f":"IFERROR(SUM(INDEX(بيانات[النسبة المئوية للإجمالي],1):بيانات[[#This Row],[النسبة المئوية للإجمالي]]), \"\")","v":{"v":0.658863663098459,"d":"65.89%"}}]
[null,"الصيانة",{"v":395000,"d":"ر.س.‏ 395,000.00"},{"$f":"IFERROR(بيانات[[#This Row],[التكلفة السنوية ]]/SUM(بيانات[[التكلفة السنوية ]]), \"\")","v":{"v":0.09293024350076462,"d":"9.29%"}},{"$f":"IFERROR(SUM(INDEX(بيانات[النسبة المئوية للإجمالي],1):بيانات[[#This Row],[النسبة المئوية للإجمالي]]), \"\")","v":{"v":0.7517939065992236,"d":"75.18%"}}]
[null,"تأجير المكتب",{"v":295000,"d":"ر.س.‏ 295,000.00"},{"$f":"IFERROR(بيانات[[#This Row],[التكلفة السنوية ]]/SUM(بيانات[[التكلفة السنوية ]]), \"\")","v":{"v":0.06940359957652041,"d":"6.94%"}},{"$f":"IFERROR(SUM(INDEX(بيانات[النسبة المئوية للإجمالي],1):بيانات[[#This Row],[النسبة المئوية للإجمالي]]), \"\")","v":{"v":0.821197506175744,"d":"82.12%"}}]
[null,"تأجير المستودع",{"v":250000,"d":"ر.س.‏ 250,000.00"},{"$f":"IFERROR(بيانات[[#This Row],[التكلفة السنوية ]]/SUM(بيانات[[التكلفة السنوية ]]), \"\")","v":{"v":0.058816609810610515,"d":"5.88%"}},{"$f":"IFERROR(SUM(INDEX(بيانات[النسبة المئوية للإجمالي],1):بيانات[[#This Row],[النسبة المئوية للإجمالي]]), \"\")","v":{"v":0.8800141159863546,"d":"88.00%"}}]
[null,"التأمين",{"v":180000,"d":"ر.س.‏ 180,000.00"},{"$f":"IFERROR(بيانات[[#This Row],[التكلفة السنوية ]]/SUM(بيانات[[التكلفة السنوية ]]), \"\")","v":{"v":0.04234795906363957,"d":"4.23%"}},{"$f":"IFERROR(SUM(INDEX(بيانات[النسبة المئوية للإجمالي],1):بيانات[[#This Row],[النسبة المئوية للإجمالي]]), \"\")","v":{"v":0.9223620750499941,"d":"92.24%"}}]
[null,"المزايا والمعاشات",{"v":130000,"d":"ر.س.‏ 130,000.00"},{"$f":"IFERROR(بيانات[[#This Row],[التكلفة السنوية ]]/SUM(بيانات[[التكلفة السنوية ]]), \"\")","v":{"v":0.03058463710151747,"d":"3.06%"}},{"$f":"IFERROR(SUM(INDEX(بيانات[النسبة المئوية للإجمالي],1):بيانات[[#This Row],[النسبة المئوية للإجمالي]]), \"\")","v":{"v":0.9529467121515116,"d":"95.29%"}}]
[null,"المركبات",{"v":125000,"d":"ر.س.‏ 125,000.00"},{"$f":"IFERROR(بيانات[[#This Row],[التكلفة السنوية ]]/SUM(بيانات[[التكلفة السنوية ]]), \"\")","v":{"v":0.029408304905305258,"d":"2.94%"}},{"$f":"IFERROR(SUM(INDEX(بيانات[النسبة المئوية للإجمالي],1):بيانات[[#This Row],[النسبة المئوية للإجمالي]]), \"\")","v":{"v":0.9823550170568168,"d":"98.24%"}}]
[null,"البحث",{"v":75000,"d":"ر.س.‏ 75,000.00"},{"$f":"IFERROR(بيانات[[#This Row],[التكلفة السنوية ]]/SUM(بيانات[[التكلفة السنوية ]]), \"\")","v":{"v":0.017644982943183157,"d":"1.76%"}},{"$f":"IFERROR(SUM(INDEX(بيانات[النسبة المئوية للإجمالي],1):بيانات[[#This Row],[النسبة المئوية للإجمالي]]), \"\")","v":{"v":1,"d":"100.00%"}}]
[null,"الإجمالي",{"$f":"SUBTOTAL(109,بيانات[[التكلفة السنوية ]])","v":{"v":4250500,"d":"ر.س.‏ 4,250,500.00"}},{"$f":"SUBTOTAL(109,بيانات[النسبة المئوية للإجمالي])","v":{"v":1,"d":"100.00%"}}]